[Event "Early-Titled-Tuesday-Blitz-April-16-2024"]
[Site "Chess.com"]
[Date "2024.04.16"]
[Round "5"]
[White "diamonds13"]
[Black "noblerone"]
[Result "1-0"]
[WhiteElo "2345"]
[BlackElo "2527"]
[TimeControl "180+1"]
[EndTime "8:55:40 PDT"]
[Termination "diamonds13 won on time"]

1. d4 {[%clk 0:03:00.9]} 1... d5 {[%clk 0:02:57.3]} 2. c4 {[%clk 0:03:01]} 2...
c6 {[%clk 0:02:57.5]} 3. Nf3 {[%clk 0:03:01.2]} 3... Nf6 {[%clk 0:02:58.1]} 4.
Nc3 {[%clk 0:03:00.1]} 4... dxc4 {[%clk 0:02:58.3]} 5. e4 {[%clk 0:02:59.2]}
5... b5 {[%clk 0:02:57.9]} 6. e5 {[%clk 0:02:58.4]} 6... Nd5 {[%clk 0:02:57.9]}
7. Be2 {[%clk 0:02:57.9]} 7... h6 {[%clk 0:02:44.5]} 8. a4 {[%clk 0:02:56.8]}
8... Nxc3 {[%clk 0:02:38.7]} 9. bxc3 {[%clk 0:02:56.7]} 9... e6 {[%clk
0:02:39.1]} 10. axb5 {[%clk 0:02:44.1]} 10... cxb5 {[%clk 0:02:39.4]} 11. Rb1
{[%clk 0:02:44.5]} 11... a6 {[%clk 0:02:36.5]} 12. O-O {[%clk 0:02:43.4]} 12...
Nd7 {[%clk 0:02:17.5]} 13. Nd2 {[%clk 0:02:42.5]} 13... Nb6 {[%clk 0:02:15.5]}
14. Bf3 {[%clk 0:02:40.5]} 14... Ra7 {[%clk 0:02:15.5]} 15. Bc6+ {[%clk
0:02:28.9]} 15... Bd7 {[%clk 0:02:13.4]} 16. Qf3 {[%clk 0:02:27.7]} 16... Be7
{[%clk 0:02:08.5]} 17. d5 {[%clk 0:02:16.9]} 17... Bxc6 {[%clk 0:01:45.8]} 18.
dxc6 {[%clk 0:02:16.1]} 18... Qd5 {[%clk 0:01:40.2]} 19. Ne4 {[%clk 0:02:14.6]}
19... Rc7 {[%clk 0:01:15.5]} 20. Be3 {[%clk 0:02:02.3]} 20... Rxc6 {[%clk
0:01:05.6]} 21. Rfd1 {[%clk 0:01:59.6]} 21... Qxd1+ {[%clk 0:00:21]} 22. Rxd1
{[%clk 0:01:57.5]} 22... Nd5 {[%clk 0:00:21.9]} 23. Rxd5 {[%clk 0:01:46]} 23...
exd5 {[%clk 0:00:21.7]} 24. Nd6+ {[%clk 0:01:46.3]} 24... Bxd6 {[%clk
0:00:17.7]} 25. Qxd5 {[%clk 0:01:43.9]} 25... Kd7 {[%clk 0:00:17.3]} 26. exd6
{[%clk 0:01:37.9]} 26... Rxd6 {[%clk 0:00:16.4]} 27. Qxf7+ {[%clk 0:01:37.5]}
27... Kc6 {[%clk 0:00:16.1]} 28. h4 {[%clk 0:01:32.4]} 28... Rd7 {[%clk
0:00:12.7]} 29. Qf3+ {[%clk 0:01:29.4]} 29... Kd6 {[%clk 0:00:11.8]} 30. Bf4+
{[%clk 0:01:24.7]} 30... Ke6 {[%clk 0:00:09.2]} 31. Qc6+ {[%clk 0:01:21.4]}
31... Ke7 {[%clk 0:00:08.9]} 32. Qc5+ {[%clk 0:01:20.4]} 32... Kf7 {[%clk
0:00:08.6]} 33. Qf5+ {[%clk 0:01:14.1]} 33... Ke7 {[%clk 0:00:09.1]} 34. Be3
{[%clk 0:01:09.2]} 34... Rc8 {[%clk 0:00:07.7]} 35. Bc5+ {[%clk 0:01:08.2]}
35... Rxc5 {[%clk 0:00:05.5]} 36. Qxc5+ {[%clk 0:01:07.9]} 36... Rd6 {[%clk
0:00:06.4]} 37. Qe5+ {[%clk 0:01:05.8]} 37... Kd7 {[%clk 0:00:05.6]} 38. Qxg7+
{[%clk 0:01:05.1]} 38... Kc6 {[%clk 0:00:06.5]} 39. Qf8 {[%clk 0:01:01.6]} 39...
Rd1+ {[%clk 0:00:02.8]} 40. Kh2 {[%clk 0:01:00.9]} 40... Rd3 {[%clk 0:00:03.7]}
41. Qxh6+ {[%clk 0:00:58.8]} 41... Kb7 {[%clk 0:00:01.8]} 42. Qg7+ {[%clk
0:00:58.2]} 42... Kb6 {[%clk 0:00:02.1]} 43. h5 {[%clk 0:00:57.7]} 1-0

[Event "Early-Titled-Tuesday-Blitz-April-16-2024"]
[Site "Chess.com"]
[Date "2024.04.16"]
[Round "5"]
[White "RojonR"]
[Black "Kostukov_Alex"]
[Result "1-0"]
[WhiteElo "2542"]
[BlackElo "2285"]
[TimeControl "180+1"]
[EndTime "8:55:46 PDT"]
[Termination "RojonR won by checkmate"]

1. e4 {[%clk 0:03:00.9]} 1... c5 {[%clk 0:02:59]} 2. Nf3 {[%clk 0:02:54.4]} 2...
g6 {[%clk 0:02:58.9]} 3. d4 {[%clk 0:02:53.7]} 3... cxd4 {[%clk 0:02:59.8]} 4.
Qxd4 {[%clk 0:02:53.9]} 4... Nf6 {[%clk 0:03:00]} 5. e5 {[%clk 0:02:53.8]} 5...
Nc6 {[%clk 0:03:00.1]} 6. Qa4 {[%clk 0:02:54.2]} 6... Nd5 {[%clk 0:03:00]} 7.
Qe4 {[%clk 0:02:54.9]} 7... Ndb4 {[%clk 0:02:59.9]} 8. Bb5 {[%clk 0:02:38.7]}
8... Qa5 {[%clk 0:02:51.1]} 9. Nc3 {[%clk 0:02:20]} 9... a6 {[%clk 0:02:41.8]}
10. Bxc6 {[%clk 0:02:16.9]} 10... bxc6 {[%clk 0:02:32.3]} 11. O-O {[%clk
0:02:14.8]} 11... Bg7 {[%clk 0:02:28.2]} 12. Bd2 {[%clk 0:02:08.6]} 12... Nd5
{[%clk 0:01:45.5]} 13. Nxd5 {[%clk 0:01:39.7]} 13... Qxd5 {[%clk 0:01:46.4]} 14.
Qxd5 {[%clk 0:01:40.2]} 14... cxd5 {[%clk 0:01:47]} 15. Bb4 {[%clk 0:01:40.9]}
15... Rb8 {[%clk 0:01:27.2]} 16. Ba3 {[%clk 0:01:40.1]} 16... f6 {[%clk
0:01:23]} 17. Rfe1 {[%clk 0:01:33.5]} 17... e6 {[%clk 0:01:06.2]} 18. Rac1
{[%clk 0:01:10]} 18... Bf8 {[%clk 0:01:01.5]} 19. Bxf8 {[%clk 0:01:07.7]} 19...
Rxf8 {[%clk 0:01:02.4]} 20. b3 {[%clk 0:01:07.1]} 20... Bb7 {[%clk 0:00:53.1]}
21. Nd4 {[%clk 0:01:02.9]} 21... fxe5 {[%clk 0:00:48.8]} 22. Rxe5 {[%clk
0:01:03.8]} 22... Rf4 {[%clk 0:00:48.7]} 23. c3 {[%clk 0:00:59.1]} 23... Rc8
{[%clk 0:00:47.2]} 24. Ne2 {[%clk 0:00:58.4]} 24... Rf6 {[%clk 0:00:42.2]} 25.
f4 {[%clk 0:00:51.3]} 25... Ke7 {[%clk 0:00:40.8]} 26. g3 {[%clk 0:00:50.3]}
26... Kd6 {[%clk 0:00:40.9]} 27. Kf2 {[%clk 0:00:47.6]} 27... a5 {[%clk
0:00:36.2]} 28. c4 {[%clk 0:00:47.4]} 28... Rff8 {[%clk 0:00:27.5]} 29. Nd4
{[%clk 0:00:43.8]} 29... dxc4 {[%clk 0:00:19.8]} 30. bxc4 {[%clk 0:00:41.4]}
30... Rc5 {[%clk 0:00:14.3]} 31. Nb5+ {[%clk 0:00:38.4]} 31... Kc6 {[%clk
0:00:14.6]} 32. Na7+ {[%clk 0:00:39.1]} 32... Kb6 {[%clk 0:00:10.9]} 33. Rb1+
{[%clk 0:00:39.1]} 33... Kxa7 {[%clk 0:00:11]} 34. Rxc5 {[%clk 0:00:39.8]} 34...
Ka6 {[%clk 0:00:09.2]} 35. Rc7 {[%clk 0:00:28.5]} 35... Bc6 {[%clk 0:00:08.5]}
36. c5 {[%clk 0:00:29.2]} 36... g5 {[%clk 0:00:08.1]} 37. Rb6# {[%clk
0:00:29.5]} 1-0

[Event "Early-Titled-Tuesday-Blitz-April-16-2024"]
[Site "Chess.com"]
[Date "2024.04.16"]
[Round "5"]
[White "tsaruk_maks"]
[Black "Vesper2018"]
[Result "1-0"]
[WhiteElo "2723"]
[BlackElo "2550"]
[TimeControl "180+1"]
[EndTime "8:55:48 PDT"]
[Termination "tsaruk_maks won by resignation"]

1. e4 {[%clk 0:02:54.9]} 1... c5 {[%clk 0:02:38.2]} 2. Nf3 {[%clk 0:02:53.7]}
2... d6 {[%clk 0:02:37.4]} 3. d4 {[%clk 0:02:53.4]} 3... cxd4 {[%clk 0:02:37.2]}
4. Nxd4 {[%clk 0:02:54.2]} 4... Nf6 {[%clk 0:02:37.7]} 5. Nc3 {[%clk 0:02:54.7]}
5... a6 {[%clk 0:02:38.2]} 6. g3 {[%clk 0:02:55.4]} 6... e5 {[%clk 0:02:37.6]}
7. Nb3 {[%clk 0:02:55.8]} 7... Be7 {[%clk 0:02:36.4]} 8. Bg2 {[%clk 0:02:56.3]}
8... b5 {[%clk 0:02:36.1]} 9. O-O {[%clk 0:02:48.7]} 9... O-O {[%clk 0:02:32.6]}
10. a4 {[%clk 0:02:17.5]} 10... bxa4 {[%clk 0:02:25]} 11. Rxa4 {[%clk
0:02:17.1]} 11... Bb7 {[%clk 0:02:23.4]} 12. Na5 {[%clk 0:02:13.2]} 12... Qc7
{[%clk 0:02:18]} 13. Bg5 {[%clk 0:02:04.3]} 13... Nbd7 {[%clk 0:02:16.3]} 14.
Qa1 {[%clk 0:01:46.3]} 14... Nb6 {[%clk 0:01:51.5]} 15. Ra2 {[%clk 0:01:27.8]}
15... Bc8 {[%clk 0:01:34.2]} 16. Rd1 {[%clk 0:01:10]} 16... Be6 {[%clk
0:01:31.2]} 17. Bxf6 {[%clk 0:01:06]} 17... Bxf6 {[%clk 0:01:30.7]} 18. b3
{[%clk 0:00:58.3]} 18... g6 {[%clk 0:01:21.8]} 19. Nd5 {[%clk 0:00:58]} 19...
Bxd5 {[%clk 0:01:08.4]} 20. exd5 {[%clk 0:00:58.9]} 20... Bg7 {[%clk 0:01:08.7]}
21. Nc6 {[%clk 0:00:59.2]} 21... e4 {[%clk 0:01:08.7]} 22. Qc1 {[%clk 0:00:57]}
22... f5 {[%clk 0:01:03.6]} 23. c4 {[%clk 0:00:57.6]} 23... f4 {[%clk
0:00:56.4]} 24. Bxe4 {[%clk 0:00:56.5]} 24... Rae8 {[%clk 0:00:55.5]} 25. Bg2
{[%clk 0:00:53.8]} 25... f3 {[%clk 0:00:53.3]} 26. Bh3 {[%clk 0:00:53.6]} 26...
Re4 {[%clk 0:00:43.4]} 27. Rxa6 {[%clk 0:00:49.6]} 27... Nc8 {[%clk 0:00:31.5]}
28. Ra8 {[%clk 0:00:46.1]} 28... Kh8 {[%clk 0:00:29]} 29. Re1 {[%clk 0:00:41.6]}
29... Re2 {[%clk 0:00:26.2]} 30. Rxe2 {[%clk 0:00:36.4]} 30... fxe2 {[%clk
0:00:26.6]} 31. Qe1 {[%clk 0:00:35.5]} 31... Ne7 {[%clk 0:00:23.1]} 32. Ra7
{[%clk 0:00:31.4]} 32... Qxa7 {[%clk 0:00:18.4]} 33. Nxa7 {[%clk 0:00:30.5]}
33... Bd4 {[%clk 0:00:18.7]} 34. Nb5 {[%clk 0:00:26.7]} 34... Bxf2+ {[%clk
0:00:17.1]} 35. Qxf2 {[%clk 0:00:26.7]} 35... Rxf2 {[%clk 0:00:16.6]} 36. Kxf2
{[%clk 0:00:27.3]} 1-0

[Event "Early-Titled-Tuesday-Blitz-April-16-2024"]
[Site "Chess.com"]
[Date "2024.04.16"]
[Round "5"]
[White "Bwert2602"]
[Black "stepanosinovsky"]
[Result "1-0"]
[WhiteElo "2270"]
[BlackElo "2395"]
[TimeControl "180+1"]
[EndTime "8:55:48 PDT"]
[Termination "Bwert2602 won on time"]

1. d4 {[%clk 0:02:52.2]} 1... Nf6 {[%clk 0:03:00.5]} 2. Nc3 {[%clk 0:02:51.5]}
2... g6 {[%clk 0:03:01.2]} 3. Bg5 {[%clk 0:02:51.8]} 3... d5 {[%clk 0:02:59.7]}
4. Qd2 {[%clk 0:02:46.4]} 4... Bg7 {[%clk 0:02:48.9]} 5. Bh6 {[%clk 0:02:45.1]}
5... Bxh6 {[%clk 0:02:34.9]} 6. Qxh6 {[%clk 0:02:44.3]} 6... Nc6 {[%clk
0:02:32.9]} 7. O-O-O {[%clk 0:02:42.4]} 7... b6 {[%clk 0:02:23.9]} 8. f3 {[%clk
0:02:34.1]} 8... Bb7 {[%clk 0:02:22.5]} 9. e4 {[%clk 0:02:34.2]} 9... dxe4
{[%clk 0:01:21]} 10. Bb5 {[%clk 0:02:21.2]} 10... a6 {[%clk 0:01:07.9]} 11. d5
{[%clk 0:02:21.3]} 11... Nxd5 {[%clk 0:00:40.1]} 12. Rxd5 {[%clk 0:02:18.2]}
12... Qc8 {[%clk 0:00:37.8]} 13. Ba4 {[%clk 0:02:00.5]} 13... b5 {[%clk
0:00:25]} 14. Bb3 {[%clk 0:02:00.2]} 14... Na5 {[%clk 0:00:20.9]} 15. Rd2 {[%clk
0:01:25.9]} 15... exf3 {[%clk 0:00:18.5]} 16. Nxf3 {[%clk 0:01:25.7]} 16...
Nxb3+ {[%clk 0:00:14.2]} 17. axb3 {[%clk 0:01:23.7]} 17... Qf5 {[%clk
0:00:12.1]} 18. Re1 {[%clk 0:01:10.4]} 18... Qf6 {[%clk 0:00:05.7]} 19. Ne4
{[%clk 0:00:40.8]} 19... Bxe4 {[%clk 0:00:04.4]} 20. Rxe4 {[%clk 0:00:41.7]}
20... Rd8 {[%clk 0:00:04.2]} 21. Rde2 {[%clk 0:00:37.8]} 21... Rd7 {[%clk
0:00:04.3]} 22. Kb1 {[%clk 0:00:25.8]} 22... e6 {[%clk 0:00:04.2]} 23. Ng5
{[%clk 0:00:25.1]} 23... Kd8 {[%clk 0:00:02.8]} 24. Qh4 {[%clk 0:00:17.7]} 24...
Qf1+ {[%clk 0:00:02.6]} 25. Re1 {[%clk 0:00:12.7]} 25... Rd1+ {[%clk 0:00:02.6]}
26. Ka2 {[%clk 0:00:12.5]} 26... Rxe1 {[%clk 0:00:02.2]} 27. Rxe1 {[%clk
0:00:13.4]} 1-0

[Event "Early-Titled-Tuesday-Blitz-April-16-2024"]
[Site "Chess.com"]
[Date "2024.04.16"]
[Round "5"]
[White "crazy_but_lazy"]
[Black "Shivananda1964"]
[Result "1-0"]
[WhiteElo "2555"]
[BlackElo "2349"]
[TimeControl "180+1"]
[EndTime "8:55:49 PDT"]
[Termination "crazy_but_lazy won on time"]

1. e4 {[%clk 0:03:00.9]} 1... Nc6 {[%clk 0:02:58.9]} 2. Nf3 {[%clk 0:02:59.5]}
2... e5 {[%clk 0:02:57.9]} 3. Nc3 {[%clk 0:02:55.2]} 3... g6 {[%clk 0:02:57.1]}
4. Bc4 {[%clk 0:02:47.4]} 4... Bg7 {[%clk 0:02:56.2]} 5. d3 {[%clk 0:02:46.2]}
5... h6 {[%clk 0:02:44.6]} 6. Be3 {[%clk 0:02:40.3]} 6... Na5 {[%clk 0:02:37]}
7. Bb5 {[%clk 0:02:40.2]} 7... c6 {[%clk 0:02:31.5]} 8. Ba4 {[%clk 0:02:40.2]}
8... b5 {[%clk 0:02:28.7]} 9. Bb3 {[%clk 0:02:40]} 9... d6 {[%clk 0:01:57.7]}
10. Qd2 {[%clk 0:02:31.4]} 10... Nf6 {[%clk 0:01:38.3]} 11. h3 {[%clk
0:02:29.9]} 11... Nxb3 {[%clk 0:01:24.4]} 12. axb3 {[%clk 0:02:29.8]} 12... Qc7
{[%clk 0:01:16.4]} 13. O-O {[%clk 0:02:28.1]} 13... a5 {[%clk 0:01:08.3]} 14. b4
{[%clk 0:02:15.2]} 14... Be6 {[%clk 0:00:58.5]} 15. d4 {[%clk 0:02:13.2]} 15...
O-O {[%clk 0:00:43.9]} 16. Bxh6 {[%clk 0:01:11.2]} 16... axb4 {[%clk 0:00:41]}
17. Bxg7 {[%clk 0:01:11.5]} 17... Kxg7 {[%clk 0:00:37.5]} 18. dxe5 {[%clk
0:01:11.8]} 18... dxe5 {[%clk 0:00:36.2]} 19. Ne2 {[%clk 0:01:11.7]} 19... Rxa1
{[%clk 0:00:24.2]} 20. Rxa1 {[%clk 0:01:11.5]} 20... b3 {[%clk 0:00:17.4]} 21.
cxb3 {[%clk 0:01:02.4]} 21... Nxe4 {[%clk 0:00:11.6]} 22. Qe3 {[%clk 0:00:58.2]}
22... Bd5 {[%clk 0:00:08]} 23. b4 {[%clk 0:00:50.7]} 23... Qd6 {[%clk
0:00:06.6]} 24. Nc3 {[%clk 0:00:43.7]} 24... Qxb4 {[%clk 0:00:03.8]} 25. Nxe4
{[%clk 0:00:16.8]} 25... Bxe4 {[%clk 0:00:02.7]} 26. Nd2 {[%clk 0:00:17.5]}
26... Bd5 {[%clk 0:00:01.3]} 27. Qxe5+ {[%clk 0:00:18.1]} 27... Kg8 {[%clk
0:00:01.1]} 28. Nf1 {[%clk 0:00:12.8]} 1-0

[Event "Early-Titled-Tuesday-Blitz-April-16-2024"]
[Site "Chess.com"]
[Date "2024.04.16"]
[Round "5"]
[White "LikeWater"]
[Black "Smiechu"]
[Result "1-0"]
[WhiteElo "2584"]
[BlackElo "2370"]
[TimeControl "180+1"]
[EndTime "8:55:49 PDT"]
[Termination "LikeWater won by resignation"]

1. e4 {[%clk 0:02:58.5]} 1... c5 {[%clk 0:02:59.6]} 2. Nf3 {[%clk 0:02:56.3]}
2... g6 {[%clk 0:03:00.1]} 3. Bc4 {[%clk 0:02:49.4]} 3... Nc6 {[%clk 0:02:57]}
4. O-O {[%clk 0:02:48.8]} 4... Bg7 {[%clk 0:02:56.2]} 5. a3 {[%clk 0:02:47.5]}
5... d6 {[%clk 0:02:55.9]} 6. h3 {[%clk 0:02:47]} 6... e6 {[%clk 0:02:56.1]} 7.
d3 {[%clk 0:02:45.9]} 7... Nge7 {[%clk 0:02:56.6]} 8. Ba2 {[%clk 0:02:42.7]}
8... O-O {[%clk 0:02:56.9]} 9. Re1 {[%clk 0:02:42.5]} 9... Rb8 {[%clk
0:02:56.1]} 10. Nbd2 {[%clk 0:02:41.5]} 10... b5 {[%clk 0:02:56]} 11. c3 {[%clk
0:02:38.2]} 11... b4 {[%clk 0:02:55.8]} 12. axb4 {[%clk 0:02:37.7]} 12... cxb4
{[%clk 0:02:55.9]} 13. d4 {[%clk 0:02:38.4]} 13... bxc3 {[%clk 0:02:52.2]} 14.
bxc3 {[%clk 0:02:38.5]} 14... d5 {[%clk 0:02:51.1]} 15. Ba3 {[%clk 0:02:34.2]}
15... Re8 {[%clk 0:02:42.1]} 16. Bc5 {[%clk 0:02:29.1]} 16... e5 {[%clk
0:02:24.9]} 17. Ng5 {[%clk 0:02:22.8]} 17... h6 {[%clk 0:02:15.9]} 18. Nxf7
{[%clk 0:02:20.4]} 18... Kxf7 {[%clk 0:02:15.6]} 19. exd5 {[%clk 0:02:20.8]}
19... Kg8 {[%clk 0:01:23.9]} 20. d6+ {[%clk 0:01:53.9]} 20... Kh7 {[%clk
0:01:21.4]} 21. dxe7 {[%clk 0:01:54.7]} 21... Nxe7 {[%clk 0:01:19.8]} 22. dxe5
{[%clk 0:01:51.7]} 22... Nd5 {[%clk 0:01:12.9]} 23. Qf3 {[%clk 0:01:47.7]} 23...
Bb7 {[%clk 0:01:04.3]} 24. Bd6 {[%clk 0:01:47.3]} 24... Nb4 {[%clk 0:00:41.1]}
25. Qf7 {[%clk 0:01:33.3]} 25... Nc2 {[%clk 0:00:31.5]} 26. Bb1 {[%clk 0:01:21]}
26... Bd5 {[%clk 0:00:21.7]} 27. Qxd5 {[%clk 0:01:15.2]} 27... Nxe1 {[%clk
0:00:21.5]} 28. Bxg6+ {[%clk 0:01:00.7]} 28... Kxg6 {[%clk 0:00:20.8]} 29. Rxa7
{[%clk 0:01:01.5]} 29... Rf8 {[%clk 0:00:07.7]} 30. Qe4+ {[%clk 0:00:58]} 30...
Rf5 {[%clk 0:00:07.5]} 31. g4 {[%clk 0:00:47.3]} 31... Qg5 {[%clk 0:00:07.1]}
32. h4 {[%clk 0:00:47]} 32... Qf4 {[%clk 0:00:03.2]} 33. gxf5+ {[%clk
0:00:45.3]} 33... Qxf5 {[%clk 0:00:03.3]} 34. h5+ {[%clk 0:00:43.6]} 34... Kg5
{[%clk 0:00:03.1]} 35. Rxg7+ {[%clk 0:00:43.1]} 1-0

[Event "Early-Titled-Tuesday-Blitz-April-16-2024"]
[Site "Chess.com"]
[Date "2024.04.16"]
[Round "5"]
[White "vladgoncharov"]
[Black "scarabee43"]
[Result "0-1"]
[WhiteElo "2610"]
[BlackElo "2832"]
[TimeControl "180+1"]
[EndTime "8:55:50 PDT"]
[Termination "scarabee43 won on time"]

1. d4 {[%clk 0:03:00.9]} 1... Nf6 {[%clk 0:02:59.9]} 2. c4 {[%clk 0:02:57.5]}
2... e6 {[%clk 0:03:00.2]} 3. Nc3 {[%clk 0:02:57]} 3... d5 {[%clk 0:02:59.4]} 4.
cxd5 {[%clk 0:02:55.5]} 4... exd5 {[%clk 0:03:00]} 5. Bg5 {[%clk 0:02:55.3]}
5... Be7 {[%clk 0:03:00.3]} 6. e3 {[%clk 0:02:55.2]} 6... h6 {[%clk 0:02:58.8]}
7. Bh4 {[%clk 0:02:54.7]} 7... Bg4 {[%clk 0:02:56.3]} 8. Qb3 {[%clk 0:02:49.1]}
8... Nbd7 {[%clk 0:02:56.5]} 9. Bg3 {[%clk 0:02:27.4]} 9... Nb6 {[%clk
0:02:52.4]} 10. Nb5 {[%clk 0:02:10.7]} 10... O-O {[%clk 0:02:20.1]} 11. Bxc7
{[%clk 0:01:55.7]} 11... Qd7 {[%clk 0:02:19.6]} 12. Bd3 {[%clk 0:01:45.7]} 12...
Nc4 {[%clk 0:02:11.1]} 13. Bg3 {[%clk 0:01:38.8]} 13... Rfc8 {[%clk 0:01:58.6]}
14. Ne2 {[%clk 0:01:32.9]} 14... Ne4 {[%clk 0:01:55.5]} 15. Rd1 {[%clk
0:01:03.9]} 15... Rc6 {[%clk 0:01:34.3]} 16. Bxc4 {[%clk 0:00:47.4]} 16... dxc4
{[%clk 0:01:20.2]} 17. Qc2 {[%clk 0:00:46.7]} 17... Bf5 {[%clk 0:01:17]} 18. Qc1
{[%clk 0:00:44.3]} 18... h5 {[%clk 0:01:06.7]} 19. h3 {[%clk 0:00:26.8]} 19...
h4 {[%clk 0:01:03.7]} 20. Bf4 {[%clk 0:00:23.6]} 20... Rg6 {[%clk 0:01:01.1]}
21. Kf1 {[%clk 0:00:19.3]} 21... Qxb5 {[%clk 0:01:00.1]} 22. f3 {[%clk
0:00:14.5]} 22... Ng3+ {[%clk 0:00:56.5]} 23. Nxg3 {[%clk 0:00:14.2]} 23... hxg3
{[%clk 0:00:55.8]} 24. Kg1 {[%clk 0:00:14.1]} 24... Bd3 {[%clk 0:00:54.5]} 25.
h4 {[%clk 0:00:14]} 25... Qh5 {[%clk 0:00:48.7]} 26. b3 {[%clk 0:00:12.2]} 26...
b5 {[%clk 0:00:47.4]} 27. bxc4 {[%clk 0:00:11.6]} 27... bxc4 {[%clk 0:00:48.1]}
28. Qb2 {[%clk 0:00:11.9]} 28... Rb6 {[%clk 0:00:46.4]} 29. Qc1 {[%clk
0:00:10.4]} 29... Rb1 {[%clk 0:00:44.2]} 30. Qd2 {[%clk 0:00:10.3]} 30... Bb4
{[%clk 0:00:44.3]} 31. Qxd3 {[%clk 0:00:09.7]} 31... cxd3 {[%clk 0:00:43.2]} 32.
Rxb1 {[%clk 0:00:10.6]} 32... d2 {[%clk 0:00:43]} 33. Bxg3 {[%clk 0:00:10.1]}
33... Rc8 {[%clk 0:00:41.9]} 34. Kh2 {[%clk 0:00:10.4]} 34... Ba3 {[%clk
0:00:40.4]} 35. Rb3 {[%clk 0:00:06.9]} 35... Rc1 {[%clk 0:00:40.7]} 36. Rd3
{[%clk 0:00:06.9]} 36... Rxh1+ {[%clk 0:00:38.9]} 37. Kxh1 {[%clk 0:00:07.2]}
37... Qg6 {[%clk 0:00:39.5]} 38. Rxd2 {[%clk 0:00:05.3]} 38... Qxg3 {[%clk
0:00:39.7]} 39. Rd3 {[%clk 0:00:05.8]} 39... Bd6 {[%clk 0:00:39.4]} 0-1

[Event "Early-Titled-Tuesday-Blitz-April-16-2024"]
[Site "Chess.com"]
[Date "2024.04.16"]
[Round "5"]
[White "PonyQueen07"]
[Black "AsaHoffmann"]
[Result "1-0"]
[WhiteElo "2215"]
[BlackElo "2387"]
[TimeControl "180+1"]
[EndTime "8:55:51 PDT"]
[Termination "PonyQueen07 won by resignation"]

1. c4 {[%clk 0:03:00.9]} 1... Nf6 {[%clk 0:02:53.9]} 2. Nc3 {[%clk 0:02:59.8]}
2... d6 {[%clk 0:02:51.9]} 3. g3 {[%clk 0:03:00]} 3... c6 {[%clk 0:02:49.9]} 4.
Bg2 {[%clk 0:03:00.2]} 4... e5 {[%clk 0:02:50]} 5. d3 {[%clk 0:02:58.2]} 5...
Be7 {[%clk 0:02:50]} 6. e4 {[%clk 0:02:52.1]} 6... Be6 {[%clk 0:02:48.9]} 7.
Nge2 {[%clk 0:02:52]} 7... d5 {[%clk 0:02:48.8]} 8. cxd5 {[%clk 0:02:51.3]} 8...
cxd5 {[%clk 0:02:48.9]} 9. exd5 {[%clk 0:02:51.1]} 9... Nxd5 {[%clk 0:02:48.9]}
10. Be3 {[%clk 0:02:42.1]} 10... Nxe3 {[%clk 0:02:40.1]} 11. fxe3 {[%clk
0:02:42.1]} 11... Qb6 {[%clk 0:02:39.8]} 12. Qd2 {[%clk 0:02:16]} 12... Bg5
{[%clk 0:02:34.7]} 13. d4 {[%clk 0:02:15.6]} 13... Nc6 {[%clk 0:02:30.8]} 14.
Na4 {[%clk 0:02:02.4]} 14... Qc7 {[%clk 0:02:20.9]} 15. O-O {[%clk 0:00:59.2]}
15... exd4 {[%clk 0:02:09.4]} 16. Nxd4 {[%clk 0:00:57.6]} 16... Nxd4 {[%clk
0:02:05.4]} 17. Qxd4 {[%clk 0:00:56.6]} 17... O-O {[%clk 0:02:05.2]} 18. Kh1
{[%clk 0:00:41.2]} 18... Rfd8 {[%clk 0:02:03]} 19. Qc5 {[%clk 0:00:20.6]} 19...
Qxc5 {[%clk 0:01:54.7]} 20. Nxc5 {[%clk 0:00:20.2]} 20... Bd5 {[%clk 0:01:54.6]}
21. e4 {[%clk 0:00:17.6]} 21... Bc6 {[%clk 0:01:53.3]} 22. Rfd1 {[%clk
0:00:16.9]} 22... Bf6 {[%clk 0:01:50.1]} 23. Nd3 {[%clk 0:00:06.7]} 23... Re8
{[%clk 0:01:47]} 24. e5 {[%clk 0:00:03.1]} 24... Bxe5 {[%clk 0:01:43.3]} 25.
Nxe5 {[%clk 0:00:04]} 25... Bxg2+ {[%clk 0:01:41.2]} 26. Kxg2 {[%clk 0:00:04.3]}
26... Rxe5 {[%clk 0:01:41.2]} 27. Re1 {[%clk 0:00:03.3]} 27... Rxe1 {[%clk
0:01:39.7]} 28. Rxe1 {[%clk 0:00:03]} 28... Kf8 {[%clk 0:01:39.8]} 29. Rc1
{[%clk 0:00:02.8]} 29... Rb8 {[%clk 0:01:37.9]} 30. Rc7 {[%clk 0:00:03]} 30...
a6 {[%clk 0:01:37.1]} 31. Kf3 {[%clk 0:00:03.1]} 31... g6 {[%clk 0:01:37.2]} 32.
b4 {[%clk 0:00:02.9]} 32... Kg7 {[%clk 0:01:37]} 33. a4 {[%clk 0:00:02.3]} 33...
b6 {[%clk 0:01:36.5]} 34. b5 {[%clk 0:00:02.2]} 34... axb5 {[%clk 0:01:35.9]}
35. axb5 {[%clk 0:00:03.1]} 35... h5 {[%clk 0:01:31.4]} 36. h4 {[%clk
0:00:02.4]} 36... Kf6 {[%clk 0:01:31.5]} 37. Kf4 {[%clk 0:00:01.4]} 37... Ke6
{[%clk 0:01:31.6]} 38. Rc6+ {[%clk 0:00:01.7]} 38... Kd5 {[%clk 0:01:31.6]} 39.
Kg5 {[%clk 0:00:02.1]} 39... Ke4 {[%clk 0:01:29.4]} 40. Kf6 {[%clk 0:00:02.3]}
40... Kf3 {[%clk 0:01:29.3]} 41. Kxf7 {[%clk 0:00:02.7]} 41... Kxg3 {[%clk
0:01:29.2]} 42. Rc4 {[%clk 0:00:01.5]} 42... Rd8 {[%clk 0:01:24.2]} 43. Kxg6
{[%clk 0:00:01.7]} 43... Rd5 {[%clk 0:01:24.2]} 44. Rb4 {[%clk 0:00:02.1]} 44...
Rc5 {[%clk 0:01:22.8]} 45. Kh6 {[%clk 0:00:02]} 45... Kh3 {[%clk 0:01:22.4]} 46.
Kg6 {[%clk 0:00:02.3]} 46... Rd5 {[%clk 0:01:22.1]} 47. Kh6 {[%clk 0:00:02.7]}
47... Kg3 {[%clk 0:01:21]} 48. Kg6 {[%clk 0:00:03.1]} 48... Kf3 {[%clk 0:01:21]}
49. Kh6 {[%clk 0:00:02.7]} 49... Ke3 {[%clk 0:01:21.1]} 50. Rb1 {[%clk
0:00:02.1]} 50... Kd3 {[%clk 0:01:19.7]} 51. Rd1+ {[%clk 0:00:02]} 51... Kc4
{[%clk 0:01:19.7]} 52. Rxd5 {[%clk 0:00:02.5]} 52... Kxd5 {[%clk 0:01:19.8]} 53.
Kxh5 {[%clk 0:00:03.1]} 53... Kc5 {[%clk 0:01:20.1]} 54. Kg6 {[%clk 0:00:03.6]}
54... Kxb5 {[%clk 0:01:20.3]} 55. h5 {[%clk 0:00:04.1]} 55... Kc4 {[%clk
0:01:20.4]} 56. h6 {[%clk 0:00:04.8]} 56... b5 {[%clk 0:01:20.7]} 57. h7 {[%clk
0:00:05.5]} 57... b4 {[%clk 0:01:21]} 58. h8=Q {[%clk 0:00:06]} 58... b3 {[%clk
0:01:20.7]} 59. Qb2 {[%clk 0:00:06.4]} 59... Kb4 {[%clk 0:01:20.7]} 60. Kf5
{[%clk 0:00:07]} 60... Kc4 {[%clk 0:01:20.4]} 61. Ke4 {[%clk 0:00:07.4]} 1-0